bitfinex/quotes_BTCUSD_20241003
["timestamp","ask_amount","ask_price","bid_price","bid_amount"]
[1727949699705,0.35155163,60824.0,60823.0,0.24991866]
[1727949700166,0.35155163,60824.0,60823.0,0.001538]
[1727949700626,0.164408,60824.0,60823.0,0.001538]
[1727949700882,0.164407,60825.0,60823.0,0.001538]
[1727949701115,0.012,60824.0,60823.0,0.001538]
[1727949701344,0.012,60824.0,60823.0,0.26683685]
[1727949701571,0.012,60824.0,60823.0,0.26683686]
[1727949701809,0.012,60824.0,60823.0,0.36683686]
[1727949702297,0.012,60824.0,60823.0,0.52673571]
[1727949702299,0.011,60832.0,60831.0,0.164389]
[1727949702770,0.24828066,60835.0,60830.0,0.083]
[1727949703029,0.164384,60834.0,60830.0,0.247391]
[1727949703265,0.164383,60834.0,60830.0,0.083]
[1727949703722,0.164383,60834.0,60830.0,0.247392]
[1727949703952,0.001,60832.0,60831.0,0.164389]
[1727949704184,0.001,60832.0,60830.0,0.083]
[1727949704408,0.164382,60834.0,60830.0,0.247391]
[1727949705364,0.02577157,60835.0,60830.0,0.083]
[1727949705603,0.164387,60832.0,60830.0,0.083]
[1727949705844,0.164387,60832.0,60828.0,0.164397]
[1727949706398,0.169384,60834.0,60829.0,0.164394]
[1727949706631,0.02577157,60835.0,60829.0,0.164394]
[1727949706870,0.008,60832.0,60830.0,0.0916]
[1727949707103,0.172387,60832.0,60830.0,0.09005661]
[1727949707348,0.164389,60831.0,60830.0,0.09005661]
[1727949707595,0.164395,60829.0,60828.0,0.001]
[1727949708350,0.164395,60829.0,60828.0,0.002636]
[1727949708586,0.32758171,60829.0,60828.0,0.001636]
[1727949709541,0.33158171,60829.0,60828.0,0.001636]
[1727949710085,0.34058171,60829.0,60828.0,0.001636]
[1727949710317,0.35058171,60829.0,60828.0,0.001636]
[1727949710556,0.36458171,60829.0,60828.0,0.001636]
[1727949710793,0.201395,60829.0,60828.0,0.001636]
[1727949711621,0.36458171,60829.0,60828.0,0.001636]
[1727949714271,0.44228171,60829.0,60828.0,0.001636]
[1727949714827,0.46805778,60829.0,60828.0,0.001636]
[1727949715347,0.44228171,60829.0,60828.0,0.001636]
[1727949716085,0.44228171,60829.0,60828.0,0.001536]
[1727949716331,0.46528171,60829.0,60828.0,0.001536]
[1727949716989,0.164408,60824.0,60823.0,0.001538]
[1727949717427,0.51473834,60824.0,60823.0,0.001267]
[1727949717452,0.164435,60814.0,60813.0,0.24818066]
[1727949717675,0.51476534,60814.0,60813.0,0.24818066]
[1727949717906,0.51476534,60814.0,60808.0,0.003638]
[1727949717907,0.35033034,60814.0,60808.0,0.003638]
[1727949718132,0.32762471,60813.0,60808.0,0.003638]
[1727949719743,0.32762471,60813.0,60812.0,0.001538]
[1727949719744,0.34062471,60813.0,60812.0,0.001538]
[1727949720220,0.34062471,60813.0,60812.0,0.001438]
[1727949720458,0.34062471,60813.0,60812.0,0.001338]
[1727949720459,0.54724804,60813.0,60812.0,0.001338]
[1727949720702,0.64724804,60813.0,60812.0,0.001338]
[1727949721192,0.66124804,60813.0,60812.0,0.001338]
[1727949721426,0.64824804,60813.0,60812.0,0.001338]
[1727949721660,0.53673252,60813.0,60812.0,0.001338]
[1727949722132,0.52273252,60813.0,60812.0,0.001338]
[1727949722363,0.46740922,60813.0,60812.0,0.001338]
[1727949722858,0.48140922,60813.0,60812.0,0.001338]
[1727949723089,0.46740922,60813.0,60812.0,0.001338]
[1727949723325,0.46740922,60813.0,60812.0,0.078438]
[1727949723326,0.20422251,60813.0,60812.0,0.078438]
[1727949723554,0.36740922,60813.0,60812.0,0.001338]
[1727949724057,0.35340922,60813.0,60812.0,0.001338]
[1727949724283,0.36740922,60813.0,60812.0,0.001338]
[1727949724510,0.38140922,60813.0,60812.0,0.001338]
[1727949724740,0.36740922,60813.0,60812.0,0.001338]
[1727949724965,0.35340922,60813.0,60812.0,0.001338]
[1727949725211,0.36740922,60813.0,60812.0,0.001338]
[1727949725449,0.35340922,60813.0,60812.0,0.001338]
[1727949725681,0.36740922,60813.0,60812.0,0.001338]
[1727949726146,0.35340922,60813.0,60812.0,0.001338]
[1727949726380,0.38140922,60813.0,60812.0,0.001338]
[1727949726844,0.36740922,60813.0,60812.0,0.001338]
[1727949727088,0.03978451,60813.0,60812.0,0.00102335]
[1727949727339,0.05378451,60813.0,60812.0,0.00102335]
[1727949727583,0.03978451,60813.0,60812.0,0.16546435]
[1727949727859,0.02578451,60813.0,60812.0,0.16546435]
[1727949728081,0.014,60813.0,60812.0,0.00102335]
[1727949728305,0.028,60813.0,60812.0,0.00102335]
[1727949728534,0.028,60813.0,60812.0,0.16546435]
[1727949728781,0.014,60813.0,60812.0,0.16546435]
[1727949729038,0.014,60813.0,60812.0,0.33546435]
[1727949729275,0.028,60813.0,60812.0,0.33546435]
[1727949729519,0.014,60813.0,60812.0,0.33546435]
[1727949729990,0.43542429,60827.0,60819.0,0.164421]
[1727949730184,0.43542429,60827.0,60816.0,0.328856]
[1727949730185,0.16318671,60826.0,60816.0,0.328856]
[1727949730357,0.16318671,60826.0,60818.0,0.164424]
[1727949730569,0.16318671,60826.0,60820.0,0.164418]
[1727949731145,0.16318671,60826.0,60819.0,0.164422]
[1727949731361,0.16318671,60826.0,60818.0,0.328847]
[1727949731578,0.16318671,60826.0,60819.0,0.164421]
[1727949731795,0.16318671,60826.0,60820.0,0.164418]
[1727949732011,0.19118671,60826.0,60820.0,0.164418]
[1727949732229,0.19118671,60826.0,60818.0,0.49327]
[1727949732446,0.19118671,60826.0,60819.0,0.164421]
[1727949732718,0.02577793,60825.0,60823.0,0.25921]
[1727949732927,0.16318671,60824.0,60823.0,0.0948]
[1727949733148,0.02577793,60825.0,60824.0,0.164408]
[1727949733364,0.02577793,60825.0,60824.0,0.239608]
[1727949735092,0.014,60825.0,60824.0,0.239608]
[1727949735320,0.021,60825.0,60824.0,0.239608]
[1727949736180,0.007,60825.0,60824.0,0.239608]
[1727949736657,0.015,60825.0,60824.0,0.239608]
[1727949739068,0.015,60825.0,60824.0,0.335808]
[1727949744881,0.016638,60825.0,60824.0,0.335808]
[1727949747199,0.016638,60825.0,60824.0,0.33526607]
[1727949748859,0.016638,60825.0,60824.0,0.49845278]
[1727949749586,0.001638,60825.0,60824.0,0.49845278]
[1727949750039,0.004638,60825.0,60824.0,0.49845278]
[1727949750527,0.002638,60825.0,60824.0,0.33526607]
[1727949750764,0.004638,60825.0,60824.0,0.33526607]
[1727949751221,0.001638,60825.0,60824.0,0.33526607]
[1727949751687,0.002638,60825.0,60824.0,0.33526607]
[1727949752419,0.001638,60825.0,60824.0,0.33526607]
[1727949752674,0.004638,60825.0,60824.0,0.33526607]
[1727949755564,0.003638,60825.0,60824.0,0.33526607]
[1727949755923,0.003638,60825.0,60824.0,0.33726607]
[1727949756174,0.001638,60825.0,60824.0,0.33726607]
[1727949756412,0.003638,60825.0,60824.0,0.33726607]
[1727949756914,0.001538,60825.0,60824.0,0.33726607]
[1727949757161,0.003538,60825.0,60824.0,0.33726607]
[1727949757390,0.003538,60825.0,60824.0,0.33526607]
[1727949757880,0.004538,60825.0,60824.0,0.33526607]
[1727949758136,0.003538,60825.0,60824.0,0.33526607]
[1727949758376,0.003538,60825.0,60824.0,0.57845278]
[1727949758622,0.004538,60825.0,60824.0,0.57845278]
[1727949758875,0.003538,60825.0,60824.0,0.57845278]
[1727949759098,0.001538,60825.0,60824.0,0.57845278]
[1727949759341,0.004538,60825.0,60824.0,0.57845278]
[1727949759582,0.003538,60825.0,60824.0,0.57845278]
[1727949760359,0.001538,60825.0,60824.0,0.57845278]
[1727949760602,0.000818,60832.0,60831.0,0.335989]
[1727949760844,0.000818,60832.0,60831.0,0.68631934]
[1727949761559,0.27405103,60843.0,60842.0,0.33596]
[1727949761560,0.24828066,60843.0,60842.0,0.33596]
[1727949762099,0.24828066,60852.0,60850.0,0.164338]
[1727949762564,0.35146363,60857.0,60850.0,0.164338]
[1727949762791,0.164326,60855.0,60850.0,0.164338]
[1727949763507,0.18714363,60857.0,60850.0,0.164338]
[1727949763747,0.010818,60851.0,60850.0,0.164338]
[1727949764228,0.150144,60855.0,60848.0,0.328686]
[1727949764454,0.18714363,60857.0,60848.0,0.328686]
[1727949764455,0.01,60851.0,60850.0,0.164338]
[1727949765360,0.164324,60856.0,60851.0,0.164335]
[1727949765586,0.028,60855.0,60851.0,0.164335]
[1727949765832,0.028,60855.0,60850.0,0.164337]
[1727949765833,0.164328,60854.0,60850.0,0.164337]
[1727949766302,0.02,60851.0,60850.0,0.164337]
[1727949766752,0.01,60851.0,60850.0,0.164337]
[1727949767211,0.01,60851.0,60850.0,0.16379511]
[1727949767473,0.18714363,60853.0,60850.0,0.16379511]
[1727949767937,0.18714363,60853.0,60848.0,0.328686]
[1727949768189,0.18714363,60853.0,60849.0,0.328679]
[1727949768454,0.01,60851.0,60850.0,0.164335]
[1727949768699,0.007,60851.0,60850.0,0.165338]
[1727949768942,0.007818,60851.0,60850.0,0.265038]
[1727949769409,0.000818,60851.0,60850.0,0.264038]
[1727949771086,0.010818,60851.0,60850.0,0.264038]
[1727949771341,0.010818,60851.0,60850.0,0.35042443]
[1727949771561,0.019818,60851.0,60850.0,0.348138]
[1727949772821,0.019818,60851.0,60850.0,0.51132471]
[1727949774433,0.012,60853.0,60852.0,0.266333]
[1727949774661,0.012,60853.0,60852.0,0.79364911]
[1727949774928,0.012,60853.0,60852.0,0.79236334]
[1727949775216,0.000817,60858.0,60857.0,0.164319]
[1727949775431,0.000817,60858.0,60857.0,0.79363501]
[1727949775657,0.000817,60858.0,60857.0,0.79034934]
[1727949776622,0.001018,60859.0,60858.0,0.342916]
[1727949776852,0.001018,60859.0,60858.0,1.06757871]
[1727949777105,0.001018,60859.0,60858.0,0.79818171]
[1727949777593,0.24828066,60875.0,60869.0,0.164287]
[1727949777818,0.24828066,60875.0,60869.0,0.50267371]
[1727949778335,0.0002,60879.0,60869.0,0.50267371]
[1727949778546,0.0002,60879.0,60869.0,0.85295437]
[1727949778793,0.0002,60879.0,60878.0,0.62660563]
[1727949779037,0.0002,60879.0,60878.0,0.78979234]
[1727949779288,0.0002,60879.0,60878.0,0.83356109]
[1727949779521,0.0001,60890.0,60885.0,0.62558763]
[1727949779760,0.26436506,60887.0,60885.0,0.60163071]
[1727949780009,0.26436506,60887.0,60885.0,0.257344]
[1727949780245,0.0160844,60887.0,60879.0,0.0811]
[1727949780527,0.00026997,60879.0,60878.0,0.10115951]
[1727949780754,0.16452997,60879.0,60878.0,0.00795951]
[1727949781003,0.00026997,60877.0,60876.0,0.24828066]
[1727949781455,0.00026997,60872.0,60868.0,0.1]
[1727949781458,0.00026997,60873.0,60868.0,0.1]
[1727949781924,0.00026997,60873.0,60867.0,0.0931]
[1727949782162,0.00026997,60873.0,60869.0,0.164286]
[1727949782402,0.02602329,60873.0,60867.0,0.25739]
[1727949782643,0.00026997,60868.0,60867.0,0.25739]
[1727949783354,0.1643,60865.0,60859.0,0.0987]
[1727949783604,0.1643,60865.0,60855.0,0.328647]
[1727949783605,0.00026997,60858.0,60855.0,0.328647]
[1727949783842,0.00026997,60863.0,60860.0,0.24828066]
[1727949784077,0.18714363,60872.0,60862.0,0.32861]
[1727949784078,0.00026997,60866.0,60862.0,0.32861]
[1727949784317,0.00026997,60866.0,60865.0,0.164298]
[1727949785242,0.00326997,60866.0,60865.0,0.164298]
[1727949786138,0.00926997,60866.0,60865.0,0.165298]
[1727949786629,0.00626997,60866.0,60865.0,0.165298]
[1727949786852,0.00626997,60866.0,60865.0,0.001]
[1727949786853,0.00926997,60866.0,60865.0,0.001]
[1727949787547,0.3607086,60866.0,60865.0,0.001]
[1727949787791,0.4436086,60866.0,60865.0,0.001]
[1727949788028,0.60679531,60866.0,60865.0,0.001]
[1727949788269,0.632555,60866.0,60865.0,0.001]
[1727949788510,0.632555,60866.0,60865.0,0.0009]
[1727949788741,0.00026997,60853.0,60852.0,0.41261366]
[1727949789458,0.00026997,60853.0,60852.0,0.164333]
[1727949789934,0.00226997,60853.0,60852.0,0.164333]
[1727949791097,0.00026997,60851.0,60850.0,0.001636]
[1727949791815,0.00026997,60851.0,60850.0,0.165974]
[1727949792058,0.28060186,60859.0,60850.0,0.165974]
[1727949792059,0.00026997,60852.0,60850.0,0.001636]
[1727949792286,0.00026997,60852.0,60851.0,0.164335]
[1727949793719,0.00026997,60852.0,60851.0,0.167335]
[1727949794449,0.00026997,60852.0,60851.0,0.164335]
[1727949794677,0.00026997,60852.0,60851.0,0.166335]
[1727949794903,0.00026997,60852.0,60851.0,0.168335]
[1727949796065,0.00026997,60852.0,60851.0,0.166335]
[1727949796555,0.00026997,60852.0,60851.0,0.001]
[1727949797096,0.16460297,60852.0,60851.0,0.004]
[1727949797338,0.16460297,60852.0,60851.0,0.00045909]
[1727949797571,0.16460297,60852.0,60851.0,0.00245909]
[1727949797801,0.16460497,60851.0,60850.0,0.001636]
[1727949798049,0.00026997,60845.0,60841.0,0.171536]
[1727949798294,0.00026997,60845.0,60844.0,0.41263466]
[1727949798536,0.00026997,60845.0,60844.0,0.164354]
[1727949799521,0.00026997,60845.0,60844.0,0.169354]
[1727949800448,0.00126997,60845.0,60844.0,0.175354]
[1727949801225,0.0009413,60845.0,60844.0,0.011]
[1727949801492,0.1652933,60845.0,60844.0,0.011]
[1727949802027,0.1652933,60845.0,60844.0,0.006]
[1727949802294,0.1682933,60845.0,60844.0,0.006]
[1727949802764,0.164377,60836.0,60833.0,0.0943]
[1727949803010,0.16518671,60845.0,60833.0,0.0943]
[1727949803258,0.42663266,60845.0,60844.0,0.001]
[1727949803486,0.42663266,60845.0,60844.0,0.002]
[1727949803713,0.35053871,60845.0,60844.0,0.002]
[1727949803952,0.34853871,60845.0,60844.0,0.001]
[1727949804189,0.35753871,60845.0,60844.0,0.0009]
[1727949804422,0.164381,60835.0,60830.0,0.41267166]
[1727949804674,0.164381,60835.0,60830.0,0.41247166]
[1727949804907,0.003,60836.0,60832.0,0.164385]
[1727949805139,0.60933786,60840.0,60831.0,0.164389]
[1727949805374,0.60933786,60840.0,60829.0,0.164394]
[1727949805375,0.328749,60837.0,60829.0,0.164394]
[1727949805625,0.24828066,60847.0,60827.0,0.097]
[1727949805626,0.328768,60834.0,60827.0,0.097]
[1727949806099,0.57701666,60839.0,60827.0,0.097]
[1727949806100,0.28060186,60831.0,60827.0,0.097]
[1727949806102,0.28060186,60831.0,60823.0,0.24828066]
[1727949806341,0.28060186,60831.0,60820.0,0.0968]
[1727949806342,0.28060186,60826.0,60820.0,0.0968]
[1727949806585,0.164406,60825.0,60815.0,0.24828066]
[1727949807054,0.164406,60825.0,60819.0,0.164422]
[1727949807320,0.164406,60825.0,60824.0,0.0013651]
[1727949807783,0.164412,60823.0,60818.0,0.1607881]
[1727949808473,0.164415,60822.0,60818.0,0.1607881]
[1727949808707,0.164409,60824.0,60820.0,0.164419]
[1727949808949,0.164409,60824.0,60817.0,0.328853]
[1727949809187,0.164412,60823.0,60818.0,0.164424]
[1727949809417,0.164415,60822.0,60818.0,0.164424]
[1727949809658,0.168411,60823.0,60818.0,0.164424]
[1727949809910,0.164416,60821.0,60816.0,0.164428]
[1727949810146,0.164418,60821.0,60815.0,0.24828066]
[1727949810392,0.164418,60821.0,60816.0,0.164428]
[1727949810639,0.164418,60821.0,60817.0,0.164427]
[1727949810868,0.172415,60822.0,60815.0,0.24828066]
[1727949811110,0.164415,60822.0,60817.0,0.164426]
[1727949811337,0.002,60822.0,60818.0,0.164424]
[1727949811788,0.164412,60823.0,60818.0,0.164423]
[1727949812016,0.009,60821.0,60819.0,0.164422]
[1727949812501,0.008,60821.0,60819.0,0.164422]
[1727949812700,0.03477444,60822.0,60820.0,0.164417]
[1727949813193,0.03477444,60822.0,60817.0,0.328851]
[1727949813194,0.03477444,60822.0,60819.0,0.164421]
[1727949813713,0.011,60821.0,60819.0,0.165421]
[1727949813940,0.02577444,60822.0,60819.0,0.164421]
[1727949814167,0.02577444,60822.0,60816.0,0.328858]
[1727949814426,0.011,60821.0,60820.0,0.001]
[1727949814884,0.03677444,60822.0,60820.0,0.001]
[1727949815126,0.164416,60821.0,60820.0,0.001]
[1727949815365,0.35170743,60821.0,60820.0,0.001]
[1727949815599,0.328843,60820.0,60813.0,0.164437]
[1727949815837,0.164419,60820.0,60819.0,0.001]
[1727949816070,0.164419,60820.0,60811.0,0.24828066]
[1727949816071,0.32884,60820.0,60811.0,0.24828066]
[1727949816304,0.35172743,60814.0,60812.0,0.00102335]
[1727949816532,0.164438,60813.0,60812.0,0.00102335]
[1727949816998,0.18729143,60814.0,60812.0,0.00102335]
[1727949817496,0.164438,60813.0,60812.0,0.00075245]
[1727949817733,0.18729143,60814.0,60812.0,0.00075245]
[1727949818213,0.164438,60813.0,60812.0,0.00075245]
[1727949818694,0.014,60814.0,60812.0,0.00075245]
[1727949818944,0.009,60814.0,60813.0,0.41271866]
[1727949819173,0.164425,60818.0,60814.0,0.164435]
[1727949819402,0.164421,60820.0,60814.0,0.164435]
[1727949819637,0.164423,60819.0,60814.0,0.164435]
[1727949820111,0.328836,60821.0,60812.0,0.00075245]
[1727949820345,0.164433,60815.0,60814.0,0.001]
[1727949820570,0.35172443,60815.0,60814.0,0.001]
[1727949821533,0.54068851,60815.0,60814.0,0.001]
[1727949821725,0.164438,60813.0,60812.0,0.00075245]
[1727949823169,0.04577737,60815.0,60812.0,0.00075245]
[1727949823406,0.008,60813.0,60812.0,0.00175245]
[1727949823628,0.008,60813.0,60812.0,0.16619345]
[1727949824077,0.016,60813.0,60812.0,0.00175245]
[1727949824979,0.008,60813.0,60812.0,0.16519345]
[1727949825237,0.008,60813.0,60812.0,0.16619345]
[1727949825464,0.008,60813.0,60812.0,0.00075245]
[1727949825690,0.008,60813.0,60812.0,0.00175245]
[1727949825928,0.016,60813.0,60812.0,0.00175245]
[1727949826165,0.016,60813.0,60812.0,0.16619345]
[1727949826668,0.016,60813.0,60812.0,0.16519345]
[1727949826669,0.008,60813.0,60812.0,0.16519345]
[1727949826886,0.008,60813.0,60812.0,0.16619345]
[1727949827337,0.016,60813.0,60812.0,0.16692337]
[1727949827797,0.016,60813.0,60812.0,0.45690323]
[1727949828057,0.008,60813.0,60812.0,0.4526148]
[1727949828303,0.008,60813.0,60812.0,0.26532337]
[1727949828544,0.016,60813.0,60812.0,0.26632337]
[1727949828782,0.02577484,60821.0,60812.0,0.09988237]
[1727949829083,0.02577484,60821.0,60818.0,0.164423]
[1727949829302,0.02577484,60821.0,60812.0,0.10088237]
[1727949829535,0.18729143,60815.0,60812.0,0.10088237]
[1727949829779,0.51613943,60819.0,60812.0,0.09988237]
[1727949830021,0.35171443,60819.0,60813.0,0.328874]
[1727949830507,0.000819,60823.0,60812.0,0.09988237]
[1727949830739,0.004,60813.0,60812.0,0.26432337]
[1727949831225,0.000819,60823.0,60822.0,0.164414]
[1727949831936,0.009819,60823.0,60822.0,0.164414]
[1727949832166,0.000819,60823.0,60822.0,0.164414]
[1727949832629,0.006819,60823.0,60822.0,0.165414]
[1727949833871,0.006819,60823.0,60822.0,0.002]
[1727949833872,0.012819,60823.0,60822.0,0.002]
[1727949834116,0.17723,60823.0,60822.0,0.002]
[1727949834354,0.012819,60823.0,60822.0,0.002]
[1727949834819,0.17600571,60823.0,60822.0,0.002]
[1727949835061,0.52770814,60823.0,60822.0,0.002]
[1727949835292,0.65994726,60823.0,60822.0,0.002]
[1727949837475,0.65994726,60823.0,60822.0,0.0017291]
[1727949839806,0.68572231,60823.0,60822.0,0.0017291]
[1727949840068,0.65994726,60823.0,60822.0,0.0017291]
[1727949840816,0.58304726,60823.0,60822.0,0.0017291]
[1727949841063,0.06815812,60823.0,60822.0,0.0017291]
[1727949841328,0.05615812,60823.0,60822.0,0.164414]
[1727949841584,0.41986055,60823.0,60822.0,0.001]
[1727949841821,0.43186055,60823.0,60822.0,0.002]
[1727949842057,0.164418,60821.0,60817.0,0.50920766]
[1727949842282,0.05533912,60820.0,60818.0,0.164424]
[1727949842537,0.52893543,60823.0,60818.0,0.164424]
[1727949842538,0.21975312,60822.0,60818.0,0.164424]
[1727949842787,0.53993543,60823.0,60817.0,0.0965]
[1727949842788,0.05533912,60821.0,60817.0,0.425355]
[1727949843060,0.37552343,60823.0,60817.0,0.425355]
[1727949843061,0.05533912,60822.0,60818.0,0.164422]
[1727949843319,0.05533912,60821.0,60817.0,0.0965]
[1727949843555,0.21975712,60821.0,60817.0,0.260926]
[1727949843806,0.05533912,60820.0,60817.0,0.260926]
[1727949844037,0.05533912,60820.0,60817.0,0.425355]
[1727949844289,0.18896084,60822.0,60817.0,0.425355]
[1727949844290,0.05533912,60821.0,60818.0,0.32885]
[1727949844570,0.05533912,60820.0,60819.0,0.164422]
[1727949844802,0.05554109,60821.0,60819.0,0.328839]
[1727949845057,0.000819,60823.0,60822.0,0.164414]
[1727949845309,0.05635794,60823.0,60821.0,0.164416]
[1727949845564,0.05553894,60822.0,60821.0,0.164414]
[1727949847289,0.000819,60823.0,60822.0,0.164414]
[1727949847535,0.000819,60823.0,60822.0,0.16414396]
[1727949847768,0.05634899,60823.0,60822.0,0.16414396]
[1727949848003,0.002,60822.0,60818.0,0.0949]
[1727949848266,0.002,60822.0,60821.0,0.164416]
[1727949848504,0.0555293,60822.0,60821.0,0.164416]
[1727949849420,0.003819,60823.0,60822.0,0.164414]
[1727949849649,0.05934458,60823.0,60822.0,0.164414]
[1727949850128,0.05634458,60823.0,60822.0,0.164414]
[1727949850603,0.05634458,60823.0,60822.0,0.337914]
[1727949850844,0.000819,60823.0,60822.0,0.337914]
[1727949851070,0.000819,60823.0,60822.0,0.50110071]
[1727949851297,0.003819,60823.0,60822.0,0.50110071]
[1727949851754,0.000819,60823.0,60822.0,0.50110071]
[1727949852088,0.000819,60823.0,60822.0,0.50210071]
[1727949852204,0.002819,60823.0,60822.0,0.338914]
[1727949852888,0.000819,60823.0,60822.0,0.338914]
[1727949853387,0.000819,60823.0,60822.0,0.337914]
[1727949853616,0.000819,60823.0,60822.0,0.338914]
[1727949854066,0.000819,60823.0,60822.0,0.337914]
[1727949854287,0.000819,60823.0,60822.0,0.338914]
[1727949854513,0.001819,60823.0,60822.0,0.33955]
[1727949854741,0.001819,60823.0,60822.0,0.34255]
[1727949854965,0.000819,60823.0,60822.0,0.34255]
[1727949855185,0.000819,60823.0,60822.0,0.34455]
[1727949857253,0.000819,60823.0,60822.0,0.34255]
[1727949857482,0.000819,60823.0,60822.0,0.34173601]
[1727949857712,0.001819,60823.0,60822.0,0.33873601]
[1727949860312,0.001819,60823.0,60822.0,0.25543601]
[1727949861267,0.000819,60823.0,60822.0,0.25543601]
[1727949861492,0.001819,60823.0,60822.0,0.25543601]
[1727949862202,0.001819,60823.0,60822.0,0.16523601]
[1727949862674,0.000819,60823.0,60822.0,0.16523601]
[1727949862901,0.003819,60823.0,60822.0,0.16523601]
[1727949863353,0.000819,60823.0,60822.0,0.16523601]
[1727949863853,0.001819,60823.0,60822.0,0.16523601]
[1727949864301,0.002819,60823.0,60822.0,0.16523601]
[1727949864526,0.003819,60823.0,60822.0,0.16523601]
[1727949865870,0.005819,60823.0,60822.0,0.16523601]
[1727949866236,0.002819,60823.0,60822.0,0.16523601]
[1727949866470,0.003819,60823.0,60822.0,0.16523601]
[1727949866928,0.002819,60823.0,60822.0,0.16523601]
[1727949867156,0.005819,60823.0,60822.0,0.16523601]
[1727949867385,0.005819,60823.0,60822.0,0.16411353]
[1727949873435,0.005819,60823.0,60822.0,0.33930135]
[1727949873666,0.005819,60823.0,60822.0,0.33601353]
[1727949874399,0.002819,60823.0,60822.0,0.33601353]
[1727949874624,0.003819,60823.0,60822.0,0.33601353]
[1727949874851,0.005819,60823.0,60822.0,0.33601353]
[1727949875993,0.002819,60823.0,60822.0,0.33601353]
[1727949876211,0.003819,60823.0,60822.0,0.33601353]
[1727949877599,0.003819,60823.0,60822.0,0.33519948]
[1727949884920,0.003819,60823.0,60822.0,0.25609948]
[1727949887403,0.003819,60823.0,60822.0,0.25530274]
[1727949887625,0.003819,60823.0,60822.0,0.25504766]
[1727949889513,0.003819,60823.0,60822.0,0.094436]
[1727949889748,0.003819,60823.0,60822.0,0.001636]
[1727949890199,0.05938118,60823.0,60822.0,0.001636]
[1727949891432,0.05938118,60823.0,60822.0,0.16605]
[1727949891696,0.003819,60823.0,60822.0,0.001636]
[1727949891910,0.16823,60823.0,60822.0,0.001636]
[1727949892145,0.22378623,60823.0,60822.0,0.001636]
[1727949894203,0.24956051,60823.0,60822.0,0.001636]
[1727949894459,0.22378623,60823.0,60822.0,0.001636]
[1727949895154,0.05937523,60823.0,60822.0,0.001636]
[1727949897244,0.08514886,60823.0,60822.0,0.001636]
[1727949897475,0.08514886,60823.0,60822.0,0.00087194]
[1727949897700,0.05937523,60823.0,60822.0,0.00060091]
[1727949897921,0.003819,60823.0,60822.0,0.00060091]
[1727949899644,0.003819,60823.0,60822.0,0.16501491]
[1727949899812,0.003819,60823.0,60822.0,0.00060091]
[1727949900019,0.003819,60823.0,60822.0,0.16501491]
[1727949900424,0.003819,60823.0,60822.0,0.00060091]
[1727949900827,0.02959257,60823.0,60822.0,0.00060091]
[1727949901029,0.02959257,60823.0,60822.0,0.16501491]
[1727949901231,0.02959257,60823.0,60822.0,0.34221491]
[1727949901913,0.02959257,60823.0,60822.0,0.50540162]
[1727949902190,0.003819,60823.0,60822.0,0.52218784]
[1727949902611,0.003819,60823.0,60822.0,0.50513079]
[1727949902823,0.002819,60823.0,60822.0,0.52218784]
[1727949903044,0.003819,60823.0,60822.0,0.52218784]
[1727949903254,0.003819,60823.0,60822.0,0.57116624]
[1727949903469,0.002819,60823.0,60822.0,0.60613079]
[1727949903677,0.002819,60823.0,60822.0,0.67215443]
[1727949903898,0.003819,60823.0,60822.0,0.67415443]
[1727949904118,0.001819,60823.0,60822.0,0.67415443]
[1727949904341,0.001819,60823.0,60822.0,0.66009738]
[1727949904612,0.001819,60823.0,60822.0,0.67715443]
[1727949904827,0.001819,60823.0,60822.0,0.65609738]
[1727949905040,0.002819,60823.0,60822.0,0.67715443]
[1727949905260,0.002819,60823.0,60822.0,0.66009738]
[1727949905705,0.002819,60823.0,60822.0,0.61113079]
[1727949906421,0.002819,60823.0,60822.0,0.61213079]
[1727949906852,0.002819,60823.0,60822.0,0.61113079]
[1727949907552,0.002819,60823.0,60822.0,0.6103173]
[1727949907776,0.002819,60823.0,60822.0,0.44713059]
[1727949908695,0.001819,60823.0,60822.0,0.44113059]
[1727949908922,0.001819,60823.0,60822.0,0.44313059]
[1727949909167,0.002819,60823.0,60822.0,0.44713059]
[1727949909617,0.001819,60823.0,60822.0,0.44513059]
[1727949909969,0.001819,60823.0,60822.0,0.44613059]
[1727949910439,0.001819,60823.0,60822.0,0.44113059]
[1727949910440,0.000819,60823.0,60822.0,0.44113059]
[1727949910888,0.000819,60823.0,60822.0,0.44313059]
[1727949911114,0.000819,60823.0,60822.0,0.44113059]
[1727949911366,0.000819,60823.0,60822.0,0.44213059]
[1727949911847,0.000819,60823.0,60822.0,0.261614]
[1727949912110,0.000819,60823.0,60822.0,0.001]
[1727949912383,0.000819,60823.0,60822.0,0.165414]
[1727949912850,0.000819,60823.0,60822.0,0.001]
[1727949913094,0.17223,60823.0,60822.0,0.001]
[1727949913316,0.58101194,60823.0,60822.0,0.001]
[1727949913826,0.164421,60820.0,60817.0,0.24828066]
[1727949914271,0.164421,60820.0,60815.0,0.164432]
[1727949915183,0.177421,60820.0,60815.0,0.164432]
[1727949915425,0.02577539,60819.0,60812.0,0.42215937]
[1727949915931,0.164426,60818.0,60814.0,0.164435]
[1727949916256,0.02577539,60819.0,60815.0,0.164432]
[1727949916686,0.176423,60819.0,60815.0,0.164432]
[1727949917246,0.012,60819.0,60817.0,0.164427]
[1727949917491,0.011,60818.0,60817.0,0.164427]
[1727949917736,0.011,60818.0,60817.0,0.16307247]
[1727949918181,0.000819,60823.0,60820.0,0.328838]
[1727949918408,0.000819,60823.0,60821.0,0.164415]
[1727949918604,0.000819,60823.0,60822.0,0.164414]
[1727949919759,0.000819,60823.0,60821.0,0.164416]
[1727949919960,0.014819,60823.0,60821.0,0.164416]
[1727949920203,0.014819,60823.0,60817.0,0.0818]
[1727949920456,0.000819,60823.0,60819.0,0.164421]
[1727949920681,0.028819,60823.0,60817.0,0.0818]
[1727949920919,0.028819,60823.0,60818.0,0.164422]